Cogmind - Beta 15 @@@ ROGUE MODE // 2025.05.18 @ 23:27:57 Player: Ciaphas Result: Destroyed by B-86 Titan with Hardcell Cannon Performance ------------- Evolutions (6) 3000 Regions Visited (13) 2600 Robots Destroyed (95) 475 Value Destroyed (2056) 2056 Prototype IDs (55) 1100 Alien Tech Used (0) 0 Bonus (460) 460 TOTAL SCORE: 9691 Bonus ------- Follower Combat Kills 160 Aligned with FarCom 300 Cogmind --------- Core Integrity 0/1150 Matter 82/300 Energy 100/100 System Corruption 2% Temperature Warm (109) Movement Core (50) Location -4/Factory Parts ------- > --- POWER (2) -------- (None) > --- PROPULSION (5) --- (None) > --- UTILITY (10) ----- (None) > --- WEAPON (2) ------- (None) > --- INVENTORY (5) ---- Advanced Transmission Jammer Advanced ECM Suite Guided Plasma Cannon Improved Remote Datajack Peak State ------------ > --- POWER ------------ Micro Nuclear Core Micro Fission Core > --- PROPULSION ------- Improved Cesium-ion Thruster Improved Cesium-ion Thruster Improved Cesium-ion Thruster Cooled VTOL Module Field Propulsion Drive > --- UTILITY ---------- Small Storage Unit Machine Analyzer Improved Transmission Jammer Jamming Amplifier Hacking Suite Hacking Suite System Shield Improved System Shield Advanced System Shield > --- WEAPON ----------- Mass Driver Powered Hammer > --- INVENTORY -------- IFF Parser Advanced ECM Suite Advanced Hacking Suite Guided Plasma Cannon Heavy Shock Bomb Launcher Improved Remote Datajack [Rating: 84] Favorites ----------- Power Light Nuclear Core Engine Ion Engine Power Core Light Nuclear Core Reactor Light Antimatter Reactor Propulsion Light Treads Treads Light Treads Leg Aluminum Leg Hover Unit Aerolev Unit Flight Unit Cooled VTOL Module Utility Hacking Suite Device Structural Scanner Storage Large Storage Unit Processor Machine Analyzer Hackware Hacking Suite Protection Improved Light Armor Plating Weapon Light Cannon Energy Gun Field Laser Energy Cannon Plasma Cannon Ballistic Gun Improved Assault Rifle Ballistic Cannon Light Cannon Launcher Grenade Launcher Impact Weapon Powered Hammer Slashing Weapon Katana Special Melee Weapon Datajack Build | -11 -10 -10 -9 -9 -9 -8 -8 -7 -7 -7 -7 -5 -4 ------- Run | Yrd Mat Min Mat Min Exi Min Mat Fac Sto Rec Scr Fac Fac Slots Evolved 12 | . . . 2 . . . 2 2 . . . 4 2 Power 1 | . . . . . . . . . . . . 1 . Propulsion 3 | . . . 1 . . . . 1 . . . 1 . Utility 8 | . . . 1 . . . 2 1 . . . 2 2 Weapon . | . . . . . . . . . . . . . . Parts Attached 113 | 2 16 2 25 . 2 5 10 22 2 . . 17 10 Power 12 | . 2 . 2 . . 1 1 3 . . . 1 2 Engine 4 | . 2 . 2 . . . . . . . . . . Core 7 | . . . . . . 1 1 3 . . . 1 1 Reactor 1 | . . . . . . . . . . . . . 1 Propulsion 28 | . 5 . 10 . . . 2 7 . . . 3 1 Treads 12 | . 2 . 9 . . . 1 . . . . . . Leg 3 | . 3 . . . . . . . . . . . . Wheel . | . . . . . . . . . . . . . . Hover 1 | . . . . . . . . 1 . . . . . Flight 12 | . . . 1 . . . 1 6 . . . 3 1 Utility 43 | 1 5 1 7 . . . 4 9 1 . . 12 3 Device 17 | 1 3 . 2 . . . 3 1 1 . . 5 1 Storage 4 | . 2 . 1 . . . . 1 . . . . . Processor 6 | . . . 1 . . . 1 1 . . . 2 1 Hackware 12 | . . . . . . . . 6 . . . 5 1 Protection 4 | . . 1 3 . . . . . . . . . . Artifact . | . . . . . . . . . . . . . . Weapon 30 | 1 4 1 6 . 2 4 3 3 1 . . 1 4 Energy Gun 7 | . 1 . 1 . . 2 2 1 . . . . . Energy Cannon 3 | . . . . . 1 . 1 . . . . . 1 Ballistic Gun 5 | 1 1 . 2 . . 1 . . . . . . . Ballistic Cannon 5 | . 2 . . . . . . 1 . . . 1 1 Launcher 4 | . . 1 . . . . . . 1 . . . 2 Special Weapon . | . . . . . . . . . . . . . . Impact Weapon 4 | . . . 3 . . . . 1 . . . . . Slashing Weapon 1 | . . . . . . 1 . . . . . . . Piercing Weapon . | . . . . . . . . . . . . . . Special Melee Weapon 1 | . . . . . 1 . . . . . . . . Unidentified Prototypes 14 | . . . 5 . . . 3 3 1 . . 1 1 Corrupted Parts 2 | . . . . . . . . . . . . 2 . System Corruption 4 | . . . . . . . . . . . . 4 . Parts Lost 13 | . 3 . 3 . . . . . . . . 1 6 Power 2 | . . . . . . . . . . . . . 2 Propulsion 2 | . . . . . . . . . . . . . 2 Utility 6 | . 1 . 3 . . . . . . . . 1 1 Weapon 3 | . 2 . . . . . . . . . . . 1 Highest Loss Streak 3 | . 1 . 2 . . . . . . . . 1 3 To Critical Strikes . | . . . . . . . . . . . . . . Average Backups 11 | 6 10 14 14 19 19 19 19 6 8 8 8 7 6 Power . | 1 1 1 1 1 1 1 1 . 1 1 1 . . Propulsion 2 | 4 3 4 2 4 4 4 4 . 1 1 1 1 . Utility 4 | . 3 5 6 7 7 7 6 3 4 4 4 3 3 Weapon 3 | 1 1 3 3 6 7 5 6 2 2 2 2 2 1 Tool/Special . | . . . . . . . . . . . . . . Unused Backups 38 | 8 4 . 8 . . 1 4 8 1 1 . . 3 Power 3 | 1 . . 1 . . . 1 . . . . . . Propulsion 9 | 3 2 . 2 . . . 2 . . . . . . Utility 13 | 1 1 . 3 . . 1 1 3 . 1 . . 2 Weapon 11 | 3 1 . 2 . . . . 4 1 . . . . Tool/Special 2 | . . . . . . . . 1 . . . . 1 Average Slot Usage (%) 96 | . 99 100 98 100 88 99 99 99 100 100 100 88 71 Engine 6 | . 14 14 11 11 11 3 . . . . . . . Core 3 | . . . . . . 7 9 7 7 7 7 8 6 Treads 13 | . 5 28 32 33 33 33 27 . . . . . . Leg 3 | . 22 . . . . . . . . . . . . Flight 11 | . . . . . . . . 29 30 30 30 28 20 Device 11 | . 12 12 10 11 11 11 21 13 7 7 7 7 . Storage 9 | . 15 14 11 11 11 11 9 4 7 7 7 5 4 Processor 1 | . . . 4 . . . 8 . . . . 2 8 Hackware 10 | . . . . . . . . 26 30 30 30 22 21 Protection 2 | . . 1 6 11 11 11 5 . . . . . . Energy Gun 2 | . 6 . . . . 10 8 4 . . . . . Ballistic Gun 6 | . 14 . 16 17 1 10 4 . . . . . . Ballistic Cannon 5 | . 6 28 4 . . . . 2 6 7 7 4 3 Impact Weapon 2 | . . . . 4 . . . 6 7 7 7 4 4 Peak Build Rating 84 | 9 9 9 29 22 25 22 34 48 50 50 47 82 84 Average Rating 30 | 7 8 8 22 22 17 21 31 44 48 47 47 66 62 On Entrance 29 | 6 9 8 9 22 22 17 22 34 47 47 47 47 75 Naked Turns 41 | . . . . . . . . . . . . . 41 Heaviest Build 61 | 13 32 32 58 58 58 58 61 42 21 21 21 30 29 Greatest Support 63 | 20 40 40 63 63 63 63 63 22 25 21 21 32 30 Greatest Overweight (x) 2 | . 1 . 1 . . . . 2 . . . 1 1 Average Overweight (x) . | . . . . . . . . . . . . . . Largest Inventory Capacity 20 | 8 15 15 20 20 20 20 20 20 8 8 8 8 8 Average Capacity 12 | 8 14 15 15 20 20 20 20 7 8 8 8 8 7 Most Carried 20 | 7 15 15 20 20 20 20 20 19 8 8 8 8 8 Average Carried 11 | 6 10 14 14 19 19 19 19 6 7 7 8 7 6 Final Capacity 20 | 8 15 15 20 20 20 20 20 8 8 8 8 8 5 Final Carried 20 | 5 14 15 19 20 19 20 19 8 8 8 8 8 4 Class Distribution -------------------- 43% | Mutant 31% | Hacker-Sprinter 16% | Scavenger-Mutant 3% | Hacker-Mutant Dominant Class ---------------- Mutant | -10/Materials Mutant | -10/Mines Mutant | -9/Materials Mutant | -9/Mines Mutant | -9/Exiles Scavenger-Mutant | -8/Mines Scavenger-Mutant | -8/Materials Hacker-Sprinter | -7/Factory Hacker-Sprinter | -7/Storage Hacker-Sprinter | -7/Recycling Hacker-Sprinter | -7/Scraptown Hacker-Sprinter | -5/Factory Hacker-Sprinter | -4/Factory Resources | -11 -10 -10 -9 -9 -9 -8 -8 -7 -7 -7 -7 -5 -4 ----------- Run | Yrd Mat Min Mat Min Exi Min Mat Fac Sto Rec Scr Fac Fac Matter Collected 3414 | 262 719 90 711 166 . 151 380 410 113 45 . 214 153 Remotely . | . . . . . . . . . . . . . . Salvage Created 3296 | 71 923 . 924 99 . 47 605 360 . 45 . 75 147 Parts 185 | 6 62 . 70 4 . . 28 3 . 6 . . 6 Haulers Intercepted 11 | . 2 . 2 . . . 3 4 . . . . . Recyclers Shooed 4 | . 1 . 1 . . . 2 . . . . . . Parts Field Recycled . | . . . . . . . . . . . . . . Retrieved Matter . | . . . . . . . . . . . . . . Parts Self-Destructed . | . . . . . . . . . . . . . . Prevented . | . . . . . . . . . . . . . . Kills | -11 -10 -10 -9 -9 -9 -8 -8 -7 -7 -7 -7 -5 -4 ------- Run | Yrd Mat Min Mat Min Exi Min Mat Fac Sto Rec Scr Fac Fac Combat Hostiles Destroyed 51 | . 19 1 18 3 . 1 9 . . . . . . Guns 41 | . 18 . 13 3 . 1 6 . . . . . . Cannons 6 | . 1 1 2 . . . 2 . . . . . . AOE 3 | . . . 3 . . . . . . . . . . Classes Destroyed 13 | 2 6 1 4 . . . . . . . . . . Worker 5 | . . . 3 . . . 1 1 . . . . . Builder 12 | . 3 . 1 . . . . 2 . 2 . 4 . Tunneler 2 | 1 . . 1 . . . . . . . . . . Hauler 11 | . 2 . 2 . . . 3 4 . . . . . Recycler 4 | 1 2 . . . . . . . . . . . 1 Mechanic 2 | . . . 1 . . . . 1 . . . . . Operator 5 | . 2 . 2 . . . . 1 . . . . . Watcher 5 | . 1 . 3 . . . . 1 . . . . . Swarmer 9 | . 6 . 3 . . . . . . . . . . Grunt 33 | . 13 . 8 2 . 1 9 . . . . . . Brawler 1 | . . . 1 . . . . . . . . . . Sentry 6 | . . . 6 . . . . . . . . . . Assembled 2 | . . 1 . 1 . . . . . . . . . Best Kill Streak 7 | 2 7 1 5 2 . 1 5 3 . 1 . 2 1 Combat Bots Only 5 | . 5 1 3 2 . 1 4 . . . . . . Max Kills in Single Turn 2 | 1 2 1 2 1 . 1 1 1 . 1 . 1 1 Gunslinging 1 | . 1 . . . . . . . . . . . . Exploded 2 | . . . 2 . . . . . . . . . . Melee . | . . . . . . . . . . . . . . Uniques/NPCs Destroyed . | . . . . . . . . . . . . . . Combat | -11 -10 -10 -9 -9 -9 -8 -8 -7 -7 -7 -7 -5 -4 -------- Run | Yrd Mat Min Mat Min Exi Min Mat Fac Sto Rec Scr Fac Fac Hostile Shots Fired 434 | . 103 7 77 7 . 1 49 6 5 13 . 39 127 Missed 150 | . 33 . 13 1 . . 14 4 3 5 . 17 60 Hits 284 | . 70 7 64 6 . 1 35 2 2 8 . 22 67 Melee 10 | . . 2 8 . . . . . . . . . . Projectile 274 | . 70 5 56 6 . 1 35 2 2 8 . 22 67 AOE 7 | . . 5 . . . . . . . . . 1 1 Critical Strikes 8 | . . . . . . . 4 . . . . 3 1 Damage Taken 5071 | . 752 293 978 97 . 14 483 87 34 78 . 491 1764 Core 1700 | . 148 44 69 . . . 91 11 18 5 . 163 1151 Absorbed by Shields 58 | . . . . . . . 58 . . . . . . Core Remaining (%) 77 | 100 . 23 . . . 82 83 . . . 95 83 . Volleys Fired 268 | 7 102 6 67 6 . 3 47 19 2 . . 4 5 Largest 2 | 2 2 2 2 2 . 2 2 1 1 . . 1 2 Hottest 143 | 40 85 60 60 46 . 86 143 120 40 . . 40 89 Shots Fired 476 | 14 190 12 131 13 . 6 78 19 2 . . 5 6 Gun 370 | 14 163 . 116 13 . 6 58 . . . . . . Cannon 97 | . 27 10 12 . . . 20 19 2 . . 5 2 Launcher 9 | . . 2 3 . . . . . . . . . 4 Special . | . . . . . . . . . . . . . . Kinetic 367 | 14 151 10 128 13 . 3 26 13 2 . . 5 2 Thermal 100 | . 39 . . . . 3 52 6 . . . . . Explosive 7 | . . 2 3 . . . . . . . . . 2 Electromagnetic 2 | . . . . . . . . . . . . . 2 Robot Hit Streak 26 | 3 9 4 16 3 . 2 26 1 . . . . 2 Robot Miss Streak 4 | 2 4 1 3 3 . 1 2 1 . . . . 1 Penetration Max . | . . . . . . . . . . . . . . Secondary Targets 3 | . 2 . 1 . . . . . . . . . . Max Gunslinging Chain 1 | . 1 . 1 . . . . . . . . . . Shots Hit Robots 313 | 9 109 9 93 5 4 3 59 12 . 2 . 4 4 Core Hits 125 | 3 46 2 43 4 . 1 22 1 . 1 . . 2 Critical Kills 1 | . . . 1 . . . . . . . . . . Critical Parts Destroyed 2 | . . . . . . . . 1 . . . 1 . Critical Strikes 5 | . 2 . 1 . . . . 1 . . . 1 . Burn 2 | . 2 . . . . . . . . . . . . Destroy 1 | . . . 1 . . . . . . . . . . Smash 2 | . . . . . . . . 1 . . . 1 . Melee Attacks 103 | . . . 1 13 4 . . 57 7 2 . 15 4 Impact 99 | . . . 1 13 . . . 57 7 2 . 15 4 Slashing . | . . . . . . . . . . . . . . Piercing . | . . . . . . . . . . . . . . Sneak Attacks 19 | . . . . . 4 . . 8 . 2 . 4 1 Combat Hostiles . | . . . . . . . . . . . . . . Follow-up Attacks . | . . . . . . . . . . . . . . Damage Inflicted 7244 | 109 1576 187 1709 80 . 54 1117 1022 . 259 . 458 673 Guns 3615 | 109 1340 . 1313 80 . 54 719 . . . . . . Cannons 907 | . 230 126 147 . . . 381 23 . . . . . Explosions 838 | . . 56 226 . . . . . . . . . 556 Melee 1796 | . . . . . . . . 999 . 259 . 458 80 Ramming 88 | . 6 5 23 . . . 17 . . . . . 37 Kinetic 3255 | 109 1161 126 1460 80 . 18 278 23 . . . . . Thermal 1267 | . 409 . . . . 36 822 . . . . . . Explosive 626 | . . 56 226 . . . . . . . . . 344 Electromagnetic 212 | . . . . . . . . . . . . . 212 Impact 1796 | . . . . . . . . 999 . 259 . 458 80 Slashing . | . . . . . . . . . . . . . . Piercing . | . . . . . . . . . . . . . . Highest Corruption 9 | . . . 9 9 9 9 5 . . . . 7 2 Average Corruption 7 | . . . 8 9 9 9 5 . . . . 4 2 Corruption Purged . | . . . . . . . . . . . . . . Corruption Blocked . | . . . . . . . . . . . . . . Effects 83 | . . . 13 14 12 7 18 . . . . 19 . Message Errors 20 | . . . 3 4 1 2 6 . . . . 4 . Matter Fused 24 | . . . . 4 7 1 4 . . . . 8 . Heat Flow Errors 12 | . . . 4 1 2 2 2 . . . . 1 . Energy Discharges 8 | . . . 1 1 1 1 4 . . . . . . Parts Fused 1 | . . . . 1 . . . . . . . . . Data Loss (minor) 10 | . . . 3 1 1 1 1 . . . . 3 . Data Loss (major) 1 | . . . . 1 . . . . . . . . . Misfires 3 | . . . 1 1 . . . . . . . 1 . Alerts 2 | . . . . . . . . . . . . 2 . Weapon Failures 2 | . . . 1 . . . 1 . . . . . . Overload Shots . | . . . . . . . . . . . . . . Overflow Damage 1031 | . . . . . . . 5 540 . 128 . 358 . Projectiles 5 | . . . . . . . 5 . . . . . . Explosions . | . . . . . . . . . . . . . . Melee 1026 | . . . . . . . . 540 . 128 . 358 . Knockbacks 14 | . 5 1 . . . . . 3 . 1 . 4 . Impact 8 | . . . . . . . . 3 . 1 . 4 . Kinetic 6 | . 5 1 . . . . . . . . . . . Secondary . | . . . . . . . . . . . . . . Self-Inflicted Damage 118 | . . 40 18 . . . . . . . . . 60 Shots 5 | . . 1 1 . . . . . . . . . 3 Rammed 19 | . . 1 4 . . . 2 . . . . . 12 Targets Rammed 23 | . 3 1 5 . . . 2 . . . . . 12 Kicked 3 | . 3 . . . . . . . . . . . . Crushed 1 | . . . 1 . . . . . . . . . . Highest Temperature 315 | . 193 . 310 120 147 100 239 70 32 . . 315 306 Average Temperature 79 | . 70 . 95 66 71 36 66 16 18 . . 105 25 Received Heat Transfer 1561 | . 336 . 279 . . 9 339 . 18 6 . 72 502 Effects 1 | . . . 1 . . . . . . . . . . Energy Bleed 1 | . . . 1 . . . . . . . . . . Siege Activations . | . . . . . . . . . . . . . . Martial Activations . | . . . . . . . . . . . . . . Shielding Activations . | . . . . . . . . . . . . . . Robots Disrupted . | . . . . . . . . . . . . . . Combat Hostiles . | . . . . . . . . . . . . . . Robots Corrupted 11 | . . . . . . . . 6 . 1 . 4 . Combat Hostiles . | . . . . . . . . . . . . . . Parts Fried 18 | . . . . . . . . 12 . 1 . 5 . Impact Corruptions 31 | . . . . . . . . 14 . 4 . 13 . Robots Melted 1 | . . . . . . . 1 . . . . . . Combat Hostiles 1 | . . . . . . . 1 . . . . . . Parts Melted 4 | . 3 . . . . . 1 . . . . . . Heat Transferred 2933 | . 1147 . . . . 74 1712 . . . . . . Parts Sabotaged . | . . . . . . . . . . . . . . Parts Stolen . | . . . . . . . . . . . . . . Parts Stripped . | . . . . . . . . . . . . . . Power Chain Reactions . | . . . . . . . . . . . . . . Alert | -11 -10 -10 -9 -9 -9 -8 -8 -7 -7 -7 -7 -5 -4 ------- Run | Yrd Mat Min Mat Min Exi Min Mat Fac Sto Rec Scr Fac Fac Maximum Alert Level 1 | . . . 1 . . . . . . 1 . . . Low Security (%) 96 | 100 100 100 80 100 . 100 100 100 100 87 . 100 100 Level 1 3 | . . . 19 . . . . . . 12 . . . Level 2 . | . . . . . . . . . . . . . . Level 3 . | . . . . . . . . . . . . . . Level 4 . | . . . . . . . . . . . . . . Level 5 . | . . . . . . . . . . . . . . High Security . | . . . . . . . . . . . . . . Max Security . | . . . . . . . . . . . . . . Peak Influence 288 | 5 194 27 288 109 . 42 90 80 35 219 . 79 124 Initial 109 | . . 27 . 109 . . . . 33 . . . 16 Average 52 | 2 107 1 98 40 . 8 31 13 23 154 . 17 48 Influence Increases 3191 | 10 642 15 715 84 . 107 259 393 39 294 . 251 382 Destroy 0b10 Robot/C 1080 | . 380 . 360 80 . 60 180 . 20 . . . . Destroy 0b10 Robot/NC 230 | 10 50 . 65 . . . 20 50 . 10 . 20 5 Destroy Leader 262 | . 86 . 120 . . 10 26 10 10 . . . . Allied During Kill 13 | . . . . 4 . 7 . . 2 . . . . Trap Triggered on 0b10 30 | . . . . . . . . 30 . . . . . Successful Hack 234 | . 3 . 57 . . . 13 115 . 14 . 27 5 Select Force Hacks 240 | . 30 . . . . . . . . 210 . . . Disable Machine 45 | . . . 30 . . 15 . . . . . . . Destroy Structure 172 | . 3 15 23 . . . 5 53 7 . . 24 42 Partial Spotted 240 | . . . . . . . . 135 . . . 45 60 Lose Combat Pursuer 645 | . 90 . 60 . . 15 15 . . 60 . 135 270 Influence Decreases 3125 | 10 572 85 435 324 40 107 259 319 113 130 164 216 351 Entered New Map 478 | . . 43 . 171 40 . . . 41 . 164 . 19 Time Decay 2269 | 10 542 42 395 153 . 47 259 303 32 130 . 200 156 Lost Part 126 | . 30 . 30 . . . . . . . . 6 60 Lost Ally 140 | . . . 10 . . 60 . . 40 . . 10 20 Purge Threat 112 | . . . . . . . . 16 . . . . 96 Squads Dispatched 30 | . 4 . 2 . . . 3 12 2 . . 4 3 Investigation 12 | . 2 . . . . . 2 5 . . . 1 2 Extermination 8 | . . . . . . . . 5 . . . 3 . Reinforcement 7 | . 2 . 2 . . . . 2 . . . . 1 Assault 2 | . . . . . . . . . 2 . . . . Garrison 1 | . . . . . . . 1 . . . . . . Intercept . | . . . . . . . . . . . . . . Searches Triggered . | . . . . . . . . . . . . . . Construction Impeded . | . . . . . . . . . . . . . . Haulers Reinforced . | . . . . . . . . . . . . . . Active Scanning Responses . | . . . . . . . . . . . . . . Cargo Convoy Interrupts . | . . . . . . . . . . . . . . Stealth | -11 -10 -10 -9 -9 -9 -8 -8 -7 -7 -7 -7 -5 -4 --------- Run | Yrd Mat Min Mat Min Exi Min Mat Fac Sto Rec Scr Fac Fac Distress Signals 9 | . 2 . 2 . . . 3 . . . . . 2 Communications Jammed 22 | . . . . . . . . . . 10 . 6 6 Distress Signals 6 | . . . . . . . . . . . . 6 . Times Spotted 163 | . 35 2 28 4 . 4 13 8 4 7 . 32 26 Peak Tracking Total 10 | . 5 5 6 3 . 3 5 3 4 5 . 10 9 Tactical Retreats 32 | . 5 . 2 . . 1 1 3 1 2 . 7 10 Traps | -11 -10 -10 -9 -9 -9 -8 -8 -7 -7 -7 -7 -5 -4 ------- Run | Yrd Mat Min Mat Min Exi Min Mat Fac Sto Rec Scr Fac Fac Traps Triggered 8 | . 1 . . . . . 1 3 . . . 1 2 Indirectly . | . . . . . . . . . . . . . . Trap Hack Attempts . | . . . . . . . . . . . . . . Triggered . | . . . . . . . . . . . . . . Disarmed . | . . . . . . . . . . . . . . Reprogrammed 4 | . . . . . . . . 4 . . . . . Reused 3 | . . . . . . . . 3 . . . . . Traps Extracted . | . . . . . . . . . . . . . . Installed . | . . . . . . . . . . . . . . Triggered 3 | . . . . . . . . 3 . . . . . Machines | -11 -10 -10 -9 -9 -9 -8 -8 -7 -7 -7 -7 -5 -4 ---------- Run | Yrd Mat Min Mat Min Exi Min Mat Fac Sto Rec Scr Fac Fac Machines Disabled 3 | . . . 2 . . 1 . . . . . . . Max in Single Turn 1 | . . . 1 . . 1 . . . . . . . Garrison Access 7 | . . . . . . . . 3 . . . 2 2 Machines Repaired . | . . . . . . . . . . . . . . Machines Dismantled . | . . . . . . . . . . . . . . Machines Sabotaged . | . . . . . . . . . . . . . . Overloaded Fab Kills . | . . . . . . . . . . . . . . Hacking | -11 -10 -10 -9 -9 -9 -8 -8 -7 -7 -7 -7 -5 -4 --------- Run | Yrd Mat Min Mat Min Exi Min Mat Fac Sto Rec Scr Fac Fac Machines Accessed 91 | . 7 . 9 . 2 1 4 28 2 13 1 13 11 Terminals 52 | . 5 . 8 . . 1 3 14 2 6 . 6 7 Fabricators 6 | . . . . . . . . 4 . . . 2 . Repair Stations 1 | . . . . . . . . . . . . 1 . Recycling Units 17 | . 2 . . . . . . 4 . 7 . 2 2 Scanalyzers 5 | . . . 1 . . . 1 3 . . . . . Garrison Access 7 | . . . . . . . . 3 . . . 2 2 Total Hacks 260 | . 16 . 25 . 2 2 12 73 2 32 8 45 43 Successful 162 | . 7 . 17 . 2 2 6 48 2 26 8 27 17 Failed 98 | . 9 . 8 . . . 6 25 . 6 . 18 26 Catastrophic 17 | . 3 . 2 . . . . 3 . . . 2 7 Database Lockouts . | . . . . . . . . . . . . . . Manual 151 | . 13 . 14 . 1 2 9 36 6 18 . 21 31 Terminals 170 | . 12 . 22 . . 2 10 44 2 15 . 28 35 Fabricators 18 | . . . . . . . . 10 . . . 8 . Repair Stations 3 | . . . . . . . . . . . . 3 . Recycling Units 32 | . 4 . . . . . . 4 . 17 . 2 5 Scanalyzers 14 | . . . 3 . . . 2 9 . . . . . Garrison Access 13 | . . . . . . . . 6 . . . 4 3 Terminal Hacks 55 | . 1 . 8 . 2 1 1 15 2 5 8 7 5 Record 11 | . . . . . 1 . . . . . 8 2 . Part Schematic 5 | . . . . . . . . 3 . . . 1 1 Robot Analysis 3 | . . . 3 . . . . . . . . . . Prototype ID Bank 2 | . . . . . . . . 1 . 1 . . . Open Door 2 | . . . . . . . . . 2 . . . . Level Access Points 1 | . . . . . . . . . . . . 1 . Branch Access Points 5 | . . . 1 . . . 1 2 . . . 1 . Fabricator Index 1 | . . . . . . . . 1 . . . . . Alert Level 8 | . . . 2 . . 1 . 2 . 1 . . 2 Unreport Threat 2 | . . . . . . . . 1 . . . . 1 Locate Traps 3 | . 1 . 1 . . . . . . . . 1 . Reprogram Traps 2 | . . . . . . . . 1 . . . . 1 Dispatch Records 3 | . . . . . . . . 2 . 1 . . . Recall Extermination 1 | . . . . . . . . 1 . . . . . Hauler Manifests 3 | . . . 1 . . . . . . 1 . 1 . Registered Prototypes 1 | . . . . . . . . . . 1 . . . Zone Layout 1 | . . . . . . . . 1 . . . . . Proto ID Catalog 1 | . . . . . 1 . . . . . . . . Fabricator Hacks 15 | . . . . . . . . 7 . . . 8 . Load Schematic 9 | . . . . . . . . 5 . . . 4 . Build 6 | . . . . . . . . 2 . . . 4 . Repair Station Hacks 1 | . . . . . . . . . . . . 1 . Scan Component 1 | . . . . . . . . . . . . 1 . Recycling Unit Hacks 17 | . 2 . . . . . . 4 . 8 . 2 1 Report Inventory 17 | . 2 . . . . . . 4 . 8 . 2 1 Scanalyzer 12 | . . . 2 . . . 2 8 . . . . . Insert Component 6 | . . . 1 . . . 1 4 . . . . . Analyze 6 | . . . 1 . . . 1 4 . . . . . Garrison Access Hacks 7 | . . . . . . . . 3 . . . 2 2 Seal Access 7 | . . . . . . . . 3 . . . 2 2 Unauthorized Hacks 55 | . 4 . 7 . . 1 3 11 . 13 . 7 9 Terminals 44 | . 3 . 7 . . 1 3 8 . 6 . 7 9 Assimilate 4 | . . . 1 . . . . . . . . 1 2 Botnet 9 | . 1 . 1 . . 1 1 2 . 1 . 1 1 Skim 31 | . 2 . 5 . . . 2 6 . 5 . 5 6 Fabricators 3 | . . . . . . . . 3 . . . . . Recompile 3 | . . . . . . . . 3 . . . . . Repair Stations . | . . . . . . . . . . . . . . Recycling Units 8 | . 1 . . . . . . . . 7 . . . Tunnel 8 | . 1 . . . . . . . . 7 . . . Scanalyzers . | . . . . . . . . . . . . . . Garrison Access . | . . . . . . . . . . . . . . Data Cores Recovered 1 | . . . 1 . . . . . . . . . . Used 1 | . . . 1 . . . . . . . . . . Hacking Detections 59 | . 6 . 9 . . . 4 17 . 5 . 8 10 Full Trace Events 4 | . . . . . . . 1 1 . . . 1 1 Feedback Events . | . . . . . . . . . . . . . . Feedback Blocked . | . . . . . . . . . . . . . . Robot Schematics Acquired . | . . . . . . . . . . . . . . Robots Built . | . . . . . . . . . . . . . . Authchips . | . . . . . . . . . . . . . . Time . | . . . . . . . . . . . . . . Total Robot Build Rating . | . . . . . . . . . . . . . . Part Schematics Acquired 10 | . . . 1 . . . 1 6 . . . 1 1 Parts Built 6 | . . . . . . . . 2 . . . 4 . Authchips 5 | . . . . . . . . 2 . . . 3 . Time 592 | . . . . . . . . 185 . . . 407 . Total Part Build Rating 22 | . . . . . . . . 5 . . . 17 . Parts Repaired . | . . . . . . . . . . . . . . Time . | . . . . . . . . . . . . . . Parts Recycled . | . . . . . . . . . . . . . . Recycled Matter . | . . . . . . . . . . . . . . Retrieved Matter . | . . . . . . . . . . . . . . Retrieved Components . | . . . . . . . . . . . . . . Parts Scanalyzed 5 | . . . 1 . . . 1 3 . . . . . Part Schematics Acquired 5 | . . . 1 . . . 1 3 . . . . . Parts Damaged 1 | . . . . . . . . 1 . . . . . Bothacking | -11 -10 -10 -9 -9 -9 -8 -8 -7 -7 -7 -7 -5 -4 ------------ Run | Yrd Mat Min Mat Min Exi Min Mat Fac Sto Rec Scr Fac Fac Used RIF Installer . | . . . . . . . . . . . . . . Robots Hacked 4 | . . . . . 4 . . . . . . . . Non-combat 3 | . . . . . 3 . . . . . . . . Combat 1 | . . . . . 1 . . . . . . . . Robot Hacks Applied 4 | . . . . . 4 . . . . . . . . parse_system 4 | . . . . . 4 . . . . . . . . Relay Couplers Released . | . . . . . . . . . . . . . . Fabnet Peak Effective % . | . . . . . . . . . . . . . . Robots Rewired . | . . . . . . . . . . . . . . Allies Hacked 1 | . . . . . . . . . . . . 1 . Hacks Repelled . | . . . . . . . . . . . . . . Allies | -11 -10 -10 -9 -9 -9 -8 -8 -7 -7 -7 -7 -5 -4 -------- Run | Yrd Mat Min Mat Min Exi Min Mat Fac Sto Rec Scr Fac Fac Total Allies 10 | . . . 1 4 . . . . 2 . . 1 2 Largest Group 4 | . . . 1 4 4 3 . . 2 . . 1 1 Highest-Rated Group 71 | . . . 10 71 71 40 . . 62 . . 10 10 Highest-Rated Ally 31 | . . . 10 31 31 16 . . 31 . . 10 10 Total Orders . | . . . . . . . . . . . . . . Ally Attacks 38 | . . . . 4 . 22 . . 12 . . . . Total Damage 477 | . . . . 86 . 219 . . 172 . . . . Kills 5 | . . . . 2 . 2 . . 1 . . . . Allies Corrupted . | . . . . . . . . . . . . . . Allies Melted . | . . . . . . . . . . . . . . Intel | -11 -10 -10 -9 -9 -9 -8 -8 -7 -7 -7 -7 -5 -4 ------- Run | Yrd Mat Min Mat Min Exi Min Mat Fac Sto Rec Scr Fac Fac Active Infowar (turns) 7605 | 30 1461 658 1071 459 385 209 813 1631 64 107 . 414 303 Optics 1 | . . . . . . . . 1 . . . . . Sensors 786 | . . . 786 . . . . . . . . . . IFF 5 | . . . . . . . . . . . . 5 . Terrain 497 | 30 167 . 223 . . . . . . . . 77 . Structural 5551 | . 1294 658 261 459 385 209 813 1472 . . . . . Machine Analysis 1073 | . . . 518 . . . . . . . . 252 303 Jamming 120 | . . . . . . . . . 46 14 . 21 39 ECM 562 | . . . . . . . 1 252 18 93 . 198 . Robot Analysis Total 3 | . . . 3 . . . . . . . . . . Derelict Logs Recovered 2 | . . 1 . 1 . . . . . . . . . Drone Launches . | . . . . . . . . . . . . . . Drone Recoveries . | . . . . . . . . . . . . . . Exploration | -11 -10 -10 -9 -9 -9 -8 -8 -7 -7 -7 -7 -5 -4 ------------- Run | Yrd Mat Min Mat Min Exi Min Mat Fac Sto Rec Scr Fac Fac Turns Passed 9411 | 53 1668 761 1323 459 385 209 813 1861 85 268 270 902 354 Spaces Moved 11098 | 23 742 459 617 249 235 117 300 4090 163 684 1037 1444 938 Core 73 | . . . . . . . . . . . . . 73 Treads 2172 | . 195 459 617 249 235 117 300 . . . . . . Legs 570 | 23 547 . . . . . . . . . . . . Wheels . | . . . . . . . . . . . . . . Hover . | . . . . . . . . . . . . . . Flight 8283 | . . . . . . . . 4090 163 684 1037 1444 865 Fastest Speed 17 | 120 120 160 160 160 160 160 160 23 20 26 26 17 23 Average Speed 59 | 120 172 160 160 160 160 160 162 26 25 26 26 22 27 Slowest Speed 240 | 120 190 160 240 160 160 160 163 166 26 26 26 88 91 Overloaded Moves 252 | . . . . . . . . 80 12 . . 112 48 Propulsion Burnouts . | . . . . . . . . . . . . . . Robots Hopped 55 | . . . . . . . . 17 . 20 2 8 8 Potential Cave-ins 6 | . . . . . . . . . . . . . 6 Cave-ins Triggered 1 | . . . . . . . . . . . . . 1 Exploration Rate (%) 55 | 4 95 96 66 55 64 36 30 81 34 90 58 35 27 Regions Visited 13 Branch Regions 7 Pre-discovered Areas 13 | . 1 2 1 1 1 . . . . 7 . . . Known Exits Taken 4 | . . . 1 . . . . 1 1 . . 1 . Unknown Exits Taken 9 | 1 1 1 . 1 1 1 1 . . 1 1 . . Scrap Searched 3 | . . 1 . . . . . . . . 2 . . Spaces Dug 79 | . . . 1 . . . 1 54 7 . . 12 4 Terrain Destroyed 146 | . . 15 23 . . . 5 54 7 . . 12 30 Melee 61 | . . . 1 . . . . 43 5 . . 9 3 Projectile 22 | . . . . . . . 5 11 2 . . 3 1 AOE 63 | . . 15 22 . . . . . . . . . 26 Terrain Rammed . | . . . . . . . . . . . . . . Walls Destroyed . | . . . . . . . . . . . . . . Machines Disabled . | . . . . . . . . . . . . . . Actions | -11 -10 -10 -9 -9 -9 -8 -8 -7 -7 -7 -7 -5 -4 --------- Run | Yrd Mat Min Mat Min Exi Min Mat Fac Sto Rec Scr Fac Fac Total 13189 | 34 936 472 818 273 244 134 553 4754 190 749 1034 1980 1018 Wait 1354 | . 50 2 40 1 . 4 157 495 12 78 . 483 32 Move 10976 | 22 741 458 616 248 234 116 299 4056 162 643 1033 1427 921 Hop 53 | . . . . . . . . 16 . 20 1 8 8 Pick Up 69 | 1 11 1 19 1 . 1 10 17 . 2 . 2 4 Fast Attach 49 | 1 3 1 8 . 1 2 7 8 2 . . 9 7 Attach 40 | . 4 . 6 . 1 2 5 10 . . . 8 4 Detach 31 | . 4 . 5 . 1 3 5 3 1 . . 6 3 Swap 87 | 1 9 2 23 4 . 2 4 23 2 2 . 9 6 Drop 117 | 2 9 1 28 . 3 1 17 32 2 2 . 9 11 Fire 268 | 7 102 6 67 6 . 3 47 19 2 . . 4 5 Melee 103 | . . . 1 13 4 . . 57 7 2 . 15 4 Ram 12 | . . . . . . . . . . . . . 12 Kick 3 | . 3 . . . . . . . . . . . . Crush 8 | . . 1 5 . . . 2 . . . . . . Escape Stasis 19 | . . . . . . . . 18 . . . . 1 Rewire . | . . . . . . . . . . . . . . Trap . | . . . . . . . . . . . . . . Miscellaneous . | . . . . . . . . . . . . . . Route ------- -11/Scrapyard -10/Materials (discovered 4 exits: *Mat x3 / [*Min]) -10/Mines -9/Materials (discovered 4 exits: *Mat x2 / *Min x2) -9/Mines -9/Exiles -8/Mines -8/Materials -7/Factory (discovered 6 exits: *Fac x2 / *Sto x2 / *Low x2) -7/Storage -7/Recycling (discovered 2 exits: *Fac / *Scr) -7/Scraptown -5/Factory (discovered 6 exits: *Fac x4 / *Upp x2) -4/Factory (discovered 2 exits: [*Res] / [*Upp]) History --------- Turn | Location | Event 26 | -11/Scrapyard | Discovered new exit (range 3) 54 | -11/Scrapyard | Entered Materials 173 | -10/Materials | Discovered new exit (range 16) 301 | -10/Materials | Build established: Mutant 334 | -10/Materials | Discovered new exit (range 14) 1047 | -10/Materials | Core integrity fell below 50% 1123 | -10/Materials | Discovered new exit (range 15) 1660 | -10/Materials | Discovered new exit (range 16) 1722 | -10/Materials | Entered Mines 1759 | -10/Mines | Found a damaged Exp. Sensor Array with a note attached 1762 | -10/Mines | Found Prototype Device 1903 | -10/Mines | Learned location of Storage (-7) 2169 | -10/Mines | Assembled infested the area 2174 | -10/Mines | Assisted by a Guerilla fighting off Assembled 2470 | -10/Mines | Discovered new exit (range 9) 2483 | -10/Mines | Entered Materials 2483 | -9/Materials | Evolved 2 slots: Propulsion x1, Utility x1 2729 | -9/Materials | Identified Exp. Sensor Array 2908 | -9/Materials | Discovered new exit (range 3) 3418 | -9/Materials | Identified exit to Mines 3465 | -9/Materials | Discovered new exit (range 16) 3622 | -9/Materials | Learned Storage trap positions 3720 | -9/Materials | Learned Storage stockpile data 3755 | -9/Materials | Learned 4 Recycling zone layouts 3800 | -9/Materials | Loaded intel: 15 trap records 3806 | -9/Materials | Entered Mines 3813 | -9/Mines | Received a Rocket Launcher from a helpful Derelict 3955 | -9/Mines | Excavation squad dispatched 3955 | -9/Mines | A large section of the Mines collapsed 4077 | -9/Mines | Received a Mining Laser from a helpful Derelict 4205 | -9/Mines | Excavation squad dispatched 4232 | -9/Mines | Assisted by bots powering up and referring to "LRC-V3" 4258 | -9/Mines | Deemed a non-threat by the Exiles lab entrance 4258 | -9/Mines | Discovered new exit (range 5) 4265 | -9/Mines | Entered Exiles 4265 | -9/Exiles | Accompanied by 4 allies 4305 | -9/Exiles | Met 8R-AWN 4335 | -9/Exiles | Met EX-HEX 4382 | -9/Exiles | Met EX-BIN 4403 | -9/Exiles | Aligned with FarCom system 4405 | -9/Exiles | Given EX-Vault access code 4442 | -9/Exiles | Opened EX-Vault 4451 | -9/Exiles | Found Gui. Plasma Cannon 4487 | -9/Exiles | Warned to stay clear of 0b10 Research branches 4532 | -9/Exiles | Met EX-DEC 4571 | -9/Exiles | Learned location of Zion (-6) 4634 | -9/Exiles | Discovered new exit (range 10) 4650 | -9/Exiles | Left Exiles lab with Gui. Plasma Cannon 4650 | -9/Exiles | Entered Mines 4650 | -8/Mines | Accompanied by 3 allies 4737 | -8/Mines | Lost 3 allies 4838 | -8/Mines | Discovered new exit (range 13) 4859 | -8/Mines | Entered Materials 4859 | -8/Materials | Evolved 2 slots: Utility x2 4949 | -8/Materials | Build established: Scavenger-Mutant 4991 | -8/Materials | Garrison activated, responded to threat 5574 | -8/Materials | Discovered new exit (range 3) 5672 | -8/Materials | Entered Factory 5672 | -7/Factory | Evolved 2 slots: Propulsion x1, Utility x1 5971 | -7/Factory | Build established: Hacker-Sprinter 6261 | -7/Factory | Fabricated Sml. Storage Unit? 6460 | -7/Factory | Discovered new exit (range 4) 6463 | -7/Factory | Learned 2 Proximity Caves zone layouts 6518 | -7/Factory | Identified exit to Factory 6530 | -7/Factory | Learned Extension emergency access door positions 6533 | -7/Factory | Learned location of 1 exit from Lower Caves 6545 | -7/Factory | Learned location of 1 exit from Proximity Caves 6565 | -7/Factory | Identified exit to Lower Caves 6587 | -7/Factory | Identified exit to Storage 7281 | -7/Factory | Fabricated Imp. Cesium-ion Thruster? 7533 | -7/Factory | Entered Storage 7534 | -7/Storage | Identified exit to Recycling 7535 | -7/Storage | Loaded intel: 35 trap records 7535 | -7/Storage | Met a pair of Derelict thieves 7549 | -7/Storage | Found Prototype Launcher 7549 | -7/Storage | Identified Rocket Array 7617 | -7/Storage | Used back door to open Recycling access 7618 | -7/Storage | Entered Recycling 7709 | -7/Recycling | Discovered new exit (range 5) 7821 | -7/Recycling | Learned Extension stockpile data 7879 | -7/Recycling | Scanned before Scraplab entrance 7883 | -7/Recycling | Entered Scraplab 7885 | -7/Recycling | Discovered new exit (range 3) 7886 | -7/Recycling | Entered Scraptown 7920 | -7/Scraptown | Visited Assassins FH 7937 | -7/Scraptown | Visited Supply Room 7941 | -7/Scraptown | Visited Cave Peace 7960 | -7/Scraptown | Discovered new exit (range 13) 8076 | -7/Scraptown | Visited TADAMA 8084 | -7/Scraptown | Visited Symbiants 8091 | -7/Scraptown | Visited Spacefarers 8138 | -7/Scraptown | Turned away by UFD registrar 8156 | -7/Scraptown | Entered Factory 8156 | -5/Factory | Evolved 4 slots: Power x1, Propulsion x1, Utility x2 8250 | -5/Factory | Identified exit to Upper Caves 8250 | -5/Factory | Identified exit to Factory 8406 | -5/Factory | Fabricated Imp. Cesium-ion Thruster (x1) 8544 | -5/Factory | Fabricated Imp. Cesium-ion Thruster (x1) 8770 | -5/Factory | Fabricated Imp. Cesium-ion Thruster? 8893 | -5/Factory | Learned Quarantine emergency access door positions 8928 | -5/Factory | Learned location of 2 exits from Upper Caves 8982 | -5/Factory | Fabricated Imp. Hacking Suite? 9058 | -5/Factory | Entered another Factory area 9058 | -4/Factory | Evolved 2 slots: Utility x2 9098 | -4/Factory | Discovered new exit (range 3) 9101 | -4/Factory | Spotted B-86 Titan 9103 | -4/Factory | Spotted B-86 Titan 9248 | -4/Factory | Discovered new exit (range 6) 9361 | -4/Factory | Released all parts (15) 9384 | -4/Factory | Learned location of 1 exit from Armory 9388 | -4/Factory | Found Prototype Processor 9388 | -4/Factory | Identified Exp. Signal Interpreter 9394 | -4/Factory | Lost 3 parts (1p1n1w) 9395 | -4/Factory | Core integrity fell below 50% 9410 | -4/Factory | Core integrity fell below 20% 9410 | -4/Factory | Crushed by falling debris 9412 | -4/Factory | Destroyed by B-86 Titan with Hardcell Cannon Last Messages --------------- Investigation squad. 09398_ The unstable cave ceiling collapses. 09399_ Slammed into B-86 Titan. 09399_ Knocked back. 09401_ Slammed into B-86 Titan. 09402_ Knocked back. 09402_ Penetrated by Slug. 09403_ Slammed into B-86 Titan. 09406_ Critical hit (Meltdown: +340). 09406_ Knocked back. 09407_ Slammed into B-86 Titan. 09407_ Destabilizing: System corrupted (+2). 09408_ Slammed into B-86 Titan. 09409_ B-86 Titan activates siege mode. 09409_ Slammed into B-86 Titan. 09409_ Knocked back. 09410_ The unstable cave ceiling collapses. 09410_ Crushed by falling debris. 09410_ Slammed into B-86 Titan. 09412_ Destabilizing: Core damaged (-46). Map ----- +----------------------------------------------------+ | ??????????????# ## ## | | ????########### ## ?# | | ????# + ## ####### ####### | | ????# # ## # # ##????? | | ????# """ # ???# + T#??""" | | ????# """ !! + ??#""" # #??""" | | ????# """ !! # ?#""" # ##??""" | | ????# !! # ##""" # #???""" | | ????#! # ## # #???? | | ????# # ##""" # #????? | | ????#+######### ##""" # #?????? | | ????# #########h ##""" # ####### | | ????# ## # | | ????# h + ! # ^ | | ????# ##?#? # | | ????# """ #?????##### """ | | ????# !! """ ########### """ | | ????## !! """ """ | | ?????# ! | | ?????# == ! %%" | | ?????# ! ! """ | | ?????# ! """ | | ?????# | | ?????# | | ?????# BB ###### | | ????#### # @BB ############## #??# | | ????# %# ##??????????### ###? | | ????#""" % ####???????????# #?? | | ????#"Y ###??????????????# ## " | | ????#""" #????????????????# < ## " | | ????# % #????????????????# ## " | | ????# #????????????????# ## " | | ????########????????????????###+#### | | ????????????????????????????# ### | | ????????????????????????????# #?? | | ?????????????????############"" [ #?? | | ???????########### [ = ##"" #?? | | ???????# # = ##"Y #?? | | ???????# # ##"" ### | | ???????# """ + """ """ ##"" + | | ######## """ # """ """ ## ! # | | # # """ # """ """ ######### | | # """ !# # + | | # """ # """ # ###### | | # """ # """ ###########???# """ | | # # """ #????????#T """ | | # """ # #??####??## """ | | # """ + #??# ??# | | # """ # #??# T ??# """ | | # + #??# ! ?# """ | +----------------------------------------------------+ Best States ------------- Heat Dissipation 48 Energy Generation 25 Energy Capacity 280 Matter Stores 300 Matter Capacity 300 Sight Range 16 Robot Scan Range 20 Terrain Scan Range 16 Terrain Scan Density 10 ECM Strength 2 Jamming Range 14 Armor Coverage 300 Utility Shielding 33 Melee Speed Boost 20 Evasion (%) 66 Targeting Accuracy 8 Recoil Reduction 3 Offensive Hacking 30 Defensive Hacking 36 Authchip Count 3 Item Schematics ----------------- Hacking Suite | -9/Materials | Scanalyzed Imp. Light Armor Plating | -8/Materials | Scanalyzed Remote Datajack | -7/Factory | Hacked Sml. Storage Unit | -7/Factory | Hacked Hvy. Missile Launcher | -7/Factory | Scanalyzed Imp. Datajack | -7/Factory | Scanalyzed Cld. VTOL Module | -7/Factory | Scanalyzed Imp. Cesium-ion Thruster | -7/Factory | Hacked Imp. Hacking Suite | -5/Factory | Hacked Adv. Hacking Suite | -4/Factory | Hacked Robot Schematics ------------------ None Fabricated ------------ Sml. Storage Unit | x1 | -7/Factory | Authchip Imp. Cesium-ion Thruster | x1 | -7/Factory | Authchip Imp. Cesium-ion Thruster | x1 | -5/Factory | Authchip Imp. Cesium-ion Thruster | x1 | -5/Factory | Authchip Imp. Cesium-ion Thruster | x1 | -5/Factory | Authchip Imp. Hacking Suite | x1 | -5/Factory Repaired ---------- Nothing Alien Tech Used ----------------- None Achievements -------------- Total Silence Challenges ------------ None Game ------ Seed UtilityHeavyNetwork Manual? 0 Play Time 03:01:08 Cumulative 47.3 hours Start 2025.05.18 @ 20:08:45 End 2025.05.18 @ 23:27:57 Sessions 1 Manual Loads 0 Difficulty Rogue Special Mode None Game No. 70 Rogue 70 Adventurer 0 Explorer 0 Win Type - Total 1 Types 1/0/0/0/0/0/0/0/0/0 Lore% 30 Gallery% 31 Achievement% 36 Wizard Run 0 Options --------- Layout 0 ASCII 0 Keyboard 0 Movement Numpad Keybinds 0 Fullscreen 2 Font 24/Tamsyn Map View 76x50 Zoom Use 0% Tactical HUD 1 Map Filters NONE Filters NONE Steam 1 RUN: b965fc03-3a99-465b-b1cd-94da1358dcad